bitfinex/quotes_BTCUSD_20240717
["timestamp","ask_amount","ask_price","bid_price","bid_amount"]
[1721208975264,0.0734131,65424.0,65423.0,0.163201]
[1721208975465,0.19503255,65424.0,65423.0,0.163201]
[1721208975937,0.18511361,65424.0,65423.0,0.163201]
[1721208976144,0.03226461,65424.0,65423.0,0.163201]
[1721208976348,0.013,65424.0,65423.0,0.163201]
[1721208976578,0.013,65424.0,65423.0,0.16597197]
[1721208976778,0.013,65424.0,65423.0,0.163201]
[1721208976779,0.02,65424.0,65423.0,0.163201]
[1721208976952,0.172849,65424.0,65423.0,0.138201]
[1721208977157,0.93036744,65424.0,65423.0,0.138201]
[1721208977385,0.95328477,65424.0,65423.0,0.138201]
[1721208977538,0.95428477,65424.0,65423.0,0.138201]
[1721208977741,0.94828477,65424.0,65423.0,0.138201]
[1721208977927,0.94828477,65424.0,65423.0,0.139201]
[1721208977928,1.04828477,65424.0,65423.0,0.139201]
[1721208978127,1.04828477,65424.0,65423.0,0.164201]
[1721208978333,0.12965803,65424.0,65423.0,0.163201]
[1721208978549,0.1117407,65424.0,65423.0,0.163201]
[1721208978941,0.1585897,65424.0,65423.0,0.163201]
[1721208979189,0.2575897,65424.0,65423.0,0.163201]
[1721208979384,0.2635897,65424.0,65423.0,0.163201]
[1721208979602,0.5692877,65424.0,65423.0,0.163201]
[1721208979960,0.5632877,65424.0,65423.0,0.163201]
[1721208980156,0.1047407,65424.0,65423.0,0.163201]
[1721208980497,0.0107407,65424.0,65423.0,0.163201]
[1721208980746,0.0047407,65424.0,65423.0,0.163201]
[1721208980862,0.4771,65432.0,65423.0,0.02777197]
[1721208981088,0.4771,65432.0,65430.0,0.1692]
[1721208981295,0.00475115,65431.0,65430.0,0.1692]
[1721208982625,0.71762989,65431.0,65430.0,0.1442]
[1721208982840,0.71762989,65431.0,65423.0,1e-06]
[1721208982841,0.152849,65424.0,65423.0,1e-06]
[1721208983051,0.71292874,65424.0,65423.0,1e-06]
[1721208983250,0.71769026,65424.0,65423.0,1e-06]
[1721208983665,1.02338826,65424.0,65423.0,1e-06]
[1721208983975,0.10476152,65424.0,65423.0,0.025001]
[1721208984194,0.00476152,65424.0,65423.0,0.165801]
[1721208984391,0.152844,65427.0,65424.0,0.0607]
[1721208984392,0.1,65426.0,65424.0,0.0607]
[1721208984596,0.00475225,65425.0,65424.0,0.0857]
[1721208984796,0.00650124,65425.0,65424.0,0.0857]
[1721208985043,0.00650124,65425.0,65424.0,0.1617]
[1721208987489,0.00650124,65425.0,65424.0,0.1627]
[1721208988529,0.00650124,65425.0,65424.0,0.1617]
[1721208988732,0.00650124,65425.0,65424.0,0.1627]
[1721208989102,0.15934724,65425.0,65424.0,0.1627]
[1721208989467,0.25934724,65425.0,65424.0,0.1627]
[1721208989901,0.10750124,65425.0,65424.0,0.1627]
[1721208990071,0.56604024,65425.0,65424.0,0.1377]
[1721208990289,0.56604024,65425.0,65423.0,1e-06]
[1721208990290,0.458547,65424.0,65423.0,1e-06]
[1721208990500,1.32432474,65424.0,65423.0,1e-06]
[1721208990731,1.32893355,65424.0,65423.0,1e-06]
[1721208991371,1.4621018,65424.0,65423.0,1e-06]
[1721208991654,1.48776916,65424.0,65423.0,1e-06]
[1721208991856,1.48776916,65424.0,65423.0,0.001001]
[1721208992212,1.55645536,65424.0,65423.0,1e-06]
[1721208992411,1.48776916,65424.0,65423.0,1e-06]
[1721208992617,1.82767042,65424.0,65423.0,1e-06]
[1721208992822,1.86215893,65424.0,65423.0,1e-06]
[1721208993023,1.91926137,65424.0,65423.0,1e-06]
[1721208993695,1.93926137,65424.0,65423.0,1e-06]
[1721208994100,1.82767046,65424.0,65423.0,1e-06]
[1721208994393,1.93126137,65424.0,65423.0,1e-06]
[1721208994597,1.70650221,65424.0,65423.0,1e-06]
[1721208994798,1.74098884,65424.0,65423.0,1e-06]
[1721208994995,1.75398884,65424.0,65423.0,1e-06]
[1721208995756,1.75398941,65424.0,65423.0,1e-06]
[1721208995957,2.09529691,65424.0,65423.0,1e-06]
[1721208996180,2.34619099,65424.0,65423.0,1e-06]
[1721208997583,2.67488899,65424.0,65423.0,1e-06]
[1721208997781,2.67488899,65424.0,65410.0,0.009185]
[1721208997782,1.462311,65411.0,65410.0,0.009185]
[1721208997980,1.83403436,65411.0,65410.0,0.009185]
[1721208998807,1.79978985,65411.0,65410.0,0.009185]
[1721208999003,1.83541188,65411.0,65410.0,0.009185]
[1721208999254,1.98950126,65411.0,65410.0,0.009185]
[1721208999435,2.32025926,65411.0,65410.0,0.009185]
[1721208999606,2.43469546,65411.0,65410.0,0.009185]
[1721209000028,2.44869546,65411.0,65410.0,0.009185]
[1721209000229,2.42369546,65411.0,65410.0,0.009185]
[1721209000571,1.98950126,65411.0,65410.0,0.009185]
[1721209000771,2.14293746,65411.0,65410.0,0.009185]
[1721209000972,2.15693746,65411.0,65410.0,0.009185]
[1721209001369,2.04250126,65411.0,65410.0,0.009185]
[1721209002033,2.04141379,65411.0,65410.0,0.009185]
[1721209002602,2.13289867,65411.0,65410.0,0.009185]
[1721209002948,2.43865667,65411.0,65410.0,0.009185]
[1721209003149,2.13289867,65411.0,65410.0,0.009185]
[1721209003797,2.10789867,65411.0,65410.0,0.009185]
[1721209004398,2.01641379,65411.0,65410.0,0.009185]
[1721209004601,1.95501379,65411.0,65410.0,0.009185]
[1721209004929,1.87541379,65411.0,65410.0,0.009185]
[1721209005316,1.72151614,65411.0,65410.0,0.009185]
[1721209005522,1.68853884,65411.0,65410.0,0.009185]
[1721209006710,1.38278084,65411.0,65410.0,0.009185]
[1721209007256,1.38278084,65411.0,65410.0,0.034185]
[1721209007460,1.35886247,65411.0,65410.0,0.150985]
[1721209008260,1.46203608,65411.0,65410.0,0.071285]
[1721209008805,1.48596134,65411.0,65410.0,0.071285]
[1721209009597,1.48596134,65411.0,65410.0,0.009185]
[1721209009806,1.79171934,65411.0,65410.0,0.009185]
[1721209010463,1.76779408,65411.0,65410.0,0.009185]
[1721209010592,1.77699008,65411.0,65410.0,0.009185]
[1721209011912,1.80091551,65411.0,65410.0,0.009185]
[1721209012098,1.82591551,65411.0,65410.0,0.009185]
[1721209012299,1.85892102,65411.0,65410.0,0.009185]
[1721209012888,1.84492102,65411.0,65410.0,0.009185]
[1721209013467,1.85892102,65411.0,65410.0,0.009185]
[1721209013857,1.84492102,65411.0,65410.0,0.009185]
[1721209014193,1.85892102,65411.0,65410.0,0.009185]
[1721209014422,1.83392102,65411.0,65410.0,0.009185]
[1721209016242,1.73074741,65411.0,65410.0,0.009185]
[1721209018172,1.6977419,65411.0,65410.0,0.009185]
[1721209018373,1.73103037,65411.0,65410.0,0.009185]
[1721209020970,1.73084652,65411.0,65410.0,0.009185]
[1721209023922,1.7307474,65411.0,65410.0,0.009185]
[1721209027165,1.73074878,65411.0,65410.0,0.009185]
[1721209027795,1.73074556,65411.0,65410.0,0.009185]
[1721209030434,1.73020672,65411.0,65410.0,0.009185]
[1721209031764,2.03596472,65411.0,65410.0,0.009185]
[1721209031962,2.10453936,65411.0,65410.0,0.009185]
[1721209032165,2.25888893,65411.0,65410.0,0.009185]
[1721209032404,2.19031429,65411.0,65410.0,0.009185]
[1721209032605,2.25892022,65411.0,65410.0,0.009185]
[1721209033785,1.95350871,65411.0,65410.0,0.009185]
[1721209034040,1.73053312,65411.0,65410.0,0.009185]
[1721209034240,1.31557912,65411.0,65410.0,0.099785]
[1721209034418,1.31557912,65411.0,65410.0,0.180585]
[1721209034809,1.31557912,65411.0,65410.0,0.155585]
[1721209035260,1.31557912,65411.0,65410.0,0.074785]
[1721209035425,1.46992869,65411.0,65410.0,0.009185]
[1721209035625,1.56992869,65411.0,65410.0,0.009185]
[1721209036409,1.87568669,65411.0,65410.0,0.009185]
[1721209036625,1.96718805,65411.0,65410.0,0.009185]
[1721209036872,1.93449982,65411.0,65410.0,0.009185]
[1721209037187,1.96709889,65411.0,65410.0,0.009185]
[1721209037342,1.87549454,65411.0,65410.0,0.009185]
[1721209037547,1.96712942,65411.0,65410.0,0.009185]
[1721209037746,1.66137142,65411.0,65410.0,0.009185]
[1721209038069,1.66137269,65411.0,65410.0,0.009185]
[1721209038648,1.56973654,65411.0,65410.0,0.009185]
[1721209039273,1.68424198,65411.0,65410.0,0.009185]
[1721209040269,1.56985665,65411.0,65410.0,0.009185]
[1721209040446,1.9902151,65411.0,65410.0,0.009185]
[1721209040799,1.6844571,65411.0,65410.0,0.009185]
[1721209040987,1.53010753,65411.0,65410.0,0.177285]
[1721209041162,1.48427941,65411.0,65410.0,0.177285]
[1721209041377,1.41550708,65411.0,65410.0,0.177285]
[1721209041581,1.48430136,65411.0,65410.0,0.177285]
[1721209041810,0.41264562,65411.0,65410.0,0.177285]
[1721209042015,0.31113216,65411.0,65410.0,0.177285]
[1721209042840,0.14425316,65411.0,65410.0,0.177285]
[1721209043075,0.13025316,65411.0,65410.0,0.177285]
[1721209043279,0.05125316,65411.0,65410.0,0.177285]
[1721209043488,0.05125316,65411.0,65410.0,0.330166]
[1721209043489,0.02732773,65411.0,65410.0,0.330166]
[1721209043641,0.4771,65414.0,65413.0,0.1677]
[1721209044070,0.4771,65414.0,65413.0,0.2946602]
[1721209044245,0.4771,65414.0,65413.0,0.1677]
[1721209046174,0.00084,65423.0,65422.0,0.0896]
[1721209046375,0.00084,65423.0,65422.0,0.1677]
[1721209047794,0.00084,65423.0,65422.0,0.1727]
[1721209048928,0.00084,65423.0,65422.0,0.1757]
[1721209051389,0.00498438,65423.0,65422.0,0.1757]
[1721209051646,0.00084,65423.0,65422.0,0.1757]
[1721209052270,0.00498438,65423.0,65422.0,0.1757]
[1721209052396,0.92362112,65423.0,65422.0,0.008]
[1721209052847,1.32932312,65423.0,65422.0,0.008]
[1721209053372,1.32932312,65423.0,65422.0,0.005]
[1721209053645,0.76429,65420.0,65419.0,0.025]
[1721209053869,1.01867174,65420.0,65419.0,0.025]
[1721209054051,1.02283709,65420.0,65419.0,0.025]
[1721209054649,1.02283709,65420.0,65417.0,0.025]
[1721209054650,1.32855309,65420.0,65417.0,0.025]
[1721209054808,0.33415655,65419.0,65410.0,0.009185]
[1721209055016,0.33415655,65419.0,65410.0,0.034185]
[1721209055017,0.764395,65411.0,65410.0,0.034185]
[1721209055218,0.764395,65411.0,65410.0,0.009185]
[1721209055219,0.922938,65411.0,65410.0,0.009185]
[1721209055415,1.328696,65411.0,65410.0,0.009185]
[1721209056920,1.333696,65411.0,65410.0,0.009185]
[1721209057636,1.336696,65411.0,65410.0,0.009185]
[1721209057860,1.333696,65411.0,65410.0,0.034185]
[1721209058058,1.333696,65411.0,65410.0,0.009185]
[1721209058251,1.337696,65411.0,65410.0,0.009185]
[1721209058678,1.337696,65411.0,65410.0,0.034185]
[1721209059310,1.031938,65411.0,65410.0,0.034185]
[1721209059748,1.337696,65411.0,65410.0,0.034185]
[1721209059946,1.031938,65411.0,65410.0,0.034185]
[1721209060529,1.337696,65411.0,65410.0,0.034185]
[1721209061315,0.11316126,65411.0,65410.0,0.034185]
[1721209061529,0.26604026,65411.0,65410.0,0.179385]
[1721209061726,1.031938,65411.0,65410.0,0.009185]
[1721209062153,1.337696,65411.0,65410.0,0.009185]
[1721209062358,1.333696,65411.0,65410.0,0.009185]
[1721209062561,1.328696,65411.0,65410.0,0.009185]
[1721209062725,1.331696,65411.0,65410.0,0.009185]
[1721209062939,1.336696,65411.0,65410.0,0.009185]
[1721209063415,1.331696,65411.0,65410.0,0.009185]
[1721209063656,1.336696,65411.0,65410.0,0.009185]
[1721209064467,1.340696,65411.0,65410.0,0.009185]
[1721209064680,1.034938,65411.0,65410.0,0.034185]
[1721209065147,0.57479826,65411.0,65410.0,0.034185]
[1721209065350,0.57479826,65411.0,65410.0,0.110285]
[1721209065744,0.56779826,65411.0,65410.0,0.110285]
[1721209066150,0.11216126,65411.0,65410.0,0.170985]
[1721209066316,0.01216126,65411.0,65410.0,0.170985]
[1721209066780,0.11116126,65411.0,65410.0,0.170985]
[1721209067077,0.10716126,65411.0,65410.0,0.170985]
[1721209067493,0.10716126,65411.0,65410.0,0.172985]
[1721209067904,0.10716126,65411.0,65410.0,0.174985]
[1721209068060,0.00716126,65411.0,65410.0,0.174985]
[1721209068266,0.10416126,65411.0,65410.0,0.172985]
[1721209068650,0.1,65411.0,65410.0,0.172985]
[1721209068877,0.10410414,65411.0,65410.0,0.176985]
[1721209069065,0.10494414,65411.0,65410.0,0.176985]
[1721209070524,0.25782314,65411.0,65410.0,0.176985]
[1721209071354,0.15782314,65411.0,65410.0,0.176985]
[1721209074431,0.00494414,65411.0,65410.0,0.176985]
[1721209075058,0.00084,65411.0,65410.0,0.176985]
[1721209075471,0.00494428,65411.0,65410.0,0.176985]
[1721209075672,0.00084,65411.0,65410.0,0.176985]
[1721209075871,0.00494428,65411.0,65410.0,0.176985]
[1721209077681,0.00494428,65411.0,65410.0,0.38292326]
[1721209077879,0.00084,65411.0,65410.0,0.685629]
[1721209078142,0.00084,65411.0,65410.0,0.329866]
[1721209078722,0.00084,65411.0,65410.0,0.45682438]
[1721209079073,0.00084,65411.0,65410.0,0.329866]
[1721209079706,0.00084,65411.0,65410.0,0.635629]
[1721209079918,0.00084,65411.0,65410.0,1.11835042]
[1721209081446,0.00084,65411.0,65410.0,1.57849516]
[1721209081644,0.00084,65411.0,65410.0,1.60149516]
[1721209083104,0.00084,65411.0,65410.0,1.59949516]
[1721209083444,0.00184,65411.0,65410.0,1.60949516]
[1721209083848,0.00084,65411.0,65410.0,1.59549516]
[1721209084055,0.00184,65411.0,65410.0,2.18053674]
[1721209084415,0.00184,65411.0,65410.0,2.30547884]
[1721209084755,0.00284,65411.0,65410.0,2.31747884]
[1721209086401,0.00284,65411.0,65410.0,2.62324184]
[1721209087420,0.00284,65411.0,65410.0,2.62323972]
[1721209088679,0.00284,65411.0,65410.0,2.62022226]
[1721209089050,0.00284,65411.0,65410.0,3.12598526]
[1721209089250,0.00084,65423.0,65422.0,1.290274]
[1721209089448,0.00084,65423.0,65422.0,2.49389572]
[1721209089651,0.00084,65423.0,65422.0,2.51689572]
[1721209090363,0.00084,65425.0,65424.0,1.490843]
[1721209090566,0.00084,65425.0,65424.0,1.66822474]
[1721209090766,0.00084,65425.0,65424.0,2.40652017]
[1721209090951,0.00084,65425.0,65424.0,3.10652017]
[1721209091152,0.00084,65425.0,65424.0,2.80082217]
[1721209091361,0.00015121,65433.0,65432.0,1.29071]
[1721209091558,0.00015121,65433.0,65432.0,1.81729117]
[1721209092720,0.00015121,65433.0,65432.0,0.87469]
[1721209092924,0.00015121,65433.0,65432.0,0.1709]
[1721209093261,0.00015121,65433.0,65432.0,0.32373]
[1721209093464,0.00015121,65433.0,65432.0,0.33173]
[1721209094085,0.00015121,65433.0,65432.0,0.34073]
[1721209094687,0.00015121,65433.0,65432.0,0.1879]
[1721209095436,0.00015121,65433.0,65432.0,0.34073]
[1721209096181,0.00015121,65433.0,65432.0,0.042]
[1721209096409,0.29757921,65433.0,65432.0,0.042]
[1721209096586,0.1490461,65433.0,65432.0,0.042]
[1721209096793,0.6075301,65433.0,65432.0,0.042]
[1721209097009,0.9131861,65433.0,65432.0,0.042]
[1721209097349,1.2188421,65433.0,65432.0,0.042]
[1721209097548,1.2188421,65433.0,65432.0,0.017]
[1721209097759,1.4609974,65433.0,65432.0,0.017]
[1721209097966,1.47322384,65433.0,65432.0,0.017]
[1721209098808,1.47322384,65433.0,65432.0,0.042]
[1721209099065,1.47322384,65433.0,65432.0,0.017]
[1721209099921,1.47322384,65433.0,65432.0,0.008]
[1721209100250,1.47322384,65433.0,65426.0,0.025]
[1721209100251,0.90981,65427.0,65426.0,0.025]
[1721209100595,0.91406646,65427.0,65426.0,0.025]
[1721209101497,0.91406646,65427.0,65426.0,0.027]
[1721209103739,0.91406646,65427.0,65426.0,0.028]
[1721209105198,0.91406646,65427.0,65426.0,0.003]
[1721209105199,1.3741322,65427.0,65426.0,0.003]
[1721209105399,1.4741322,65427.0,65426.0,0.003]
[1721209106387,1.4741322,65427.0,65426.0,0.028]
[1721209107091,0.94816646,65427.0,65426.0,0.028]
[1721209107363,0.10425646,65427.0,65426.0,0.028]
[1721209107765,0.00425646,65427.0,65426.0,0.028]
[1721209108076,0.1,65428.0,65427.0,0.025]
[1721209109198,0.30881121,65433.0,65426.0,0.003]
[1721209109199,0.45863521,65433.0,65432.0,0.025]
[1721209109414,0.86429121,65433.0,65432.0,0.025]
[1721209110035,0.55863521,65433.0,65432.0,0.025]
[1721209110542,0.00015121,65433.0,65432.0,0.84289]
[1721209110668,0.00015121,65433.0,65432.0,1.30293174]
[1721209110880,0.00015121,65433.0,65432.0,1.65859174]
[1721209111111,0.00015121,65433.0,65432.0,1.78550278]
[1721209111268,0.00015121,65433.0,65432.0,1.80850278]
[1721209111474,0.4771,65451.0,65450.0,0.1663]
[1721209111701,0.46304871,65458.0,65451.0,0.025]
[1721209111972,0.152761,65462.0,65451.0,0.025]
[1721209112187,0.5545,65463.0,65451.0,0.025]
[1721209112188,0.152763,65461.0,65451.0,0.025]
[1721209112796,0.15276,65462.0,65451.0,0.025]
[1721209112994,0.15276,65462.0,65451.0,0.026]
[1721209113194,0.00384,65452.0,65451.0,0.026]
[1721209113814,0.00384,65452.0,65451.0,0.02444535]
[1721209114017,0.0073241,65452.0,65451.0,0.02444535]
[1721209114439,0.0043241,65452.0,65451.0,0.03344535]
[1721209114654,0.0043241,65452.0,65451.0,0.04444535]
[1721209115041,0.0043241,65452.0,65451.0,0.03215535]
[1721209115442,0.0043241,65452.0,65451.0,0.03915535]
[1721209115927,0.0043241,65452.0,65451.0,0.03044535]
[1721209116584,0.4626741,65452.0,65451.0,0.03644535]
[1721209116788,0.7682411,65452.0,65451.0,0.03644535]
[1721209117328,1.37458984,65452.0,65451.0,0.007]
[1721209117542,1.47458984,65452.0,65451.0,0.007]
[1721209117713,1.47458984,65452.0,65451.0,0.013]
[1721209118129,0.458406,65444.0,65443.0,0.02344535]
[1721209118351,0.76401,65444.0,65443.0,0.02344535]
[1721209118557,0.458427,65441.0,65440.0,0.02344535]
[1721209118764,0.305618,65441.0,65440.0,0.02344535]
[1721209118973,0.30911065,65441.0,65440.0,0.02344535]
[1721209119182,0.76753765,65441.0,65440.0,0.02344535]
[1721209119619,0.76753765,65441.0,65438.0,0.02344535]
[1721209119620,0.152814,65439.0,65438.0,0.02344535]
[1721209119814,0.458442,65439.0,65438.0,0.02344535]
[1721209120036,0.46191981,65439.0,65438.0,0.02344535]
[1721209120359,0.90454781,65439.0,65438.0,0.02344535]
[1721209120554,0.458448,65438.0,65437.0,0.02344535]
[1721209120749,0.76408,65438.0,65437.0,0.02344535]
[1721209120975,0.152821,65436.0,65435.0,0.02344535]
[1721209121182,0.458463,65436.0,65435.0,0.02344535]
[1721209121312,0.76757103,65436.0,65435.0,0.02344535]
[1721209122624,0.46192903,65436.0,65435.0,0.02344535]
[1721209123029,0.46192903,65436.0,65435.0,0.02444535]
[1721209126006,0.15628703,65436.0,65435.0,0.02444535]
[1721209126414,0.46192903,65436.0,65435.0,0.02444535]
[1721209126628,0.76757103,65436.0,65435.0,0.02444535]
[1721209126822,0.76757103,65436.0,65435.0,0.001]
[1721209126823,1.30649477,65436.0,65435.0,0.001]
[1721209127022,1.47139477,65436.0,65435.0,0.001]
[1721209127246,1.77703677,65436.0,65435.0,0.001]
[1721209128751,1.77703677,65436.0,65435.0,0.002]
[1721209130696,1.77703677,65436.0,65435.0,0.001]
[1721209131037,1.78203677,65436.0,65435.0,0.002]
[1721209131706,1.77703677,65436.0,65435.0,0.001]
[1721209131869,1.069778,65434.0,65433.0,0.00063766]
[1721209132070,1.32415974,65434.0,65433.0,0.00063766]
[1721209132338,1.32761903,65434.0,65433.0,0.00063766]
[1721209133501,1.32761903,65434.0,65433.0,0.02408301]
[1721209134741,1.32961903,65434.0,65433.0,0.02508301]
[1721209135104,1.32761903,65434.0,65433.0,0.00163766]
[1721209135303,1.32761903,65434.0,65433.0,0.02508301]
[1721209135933,1.32761903,65434.0,65433.0,0.02408301]
[1721209137056,1.32961903,65434.0,65433.0,0.02508301]
[1721209140092,1.32961903,65434.0,65433.0,0.00163766]
[1721209141722,1.8519196,65434.0,65433.0,0.00163766]
[1721209141896,1.95333647,65434.0,65433.0,0.00163766]
[1721209142418,1.7989869,65434.0,65433.0,0.00163766]
[1721209143139,1.83810907,65434.0,65433.0,0.00163766]
[1721209143422,1.7989869,65434.0,65433.0,0.00163766]
[1721209143641,1.77507003,65434.0,65433.0,0.00163766]
[1721209144743,1.81411257,65434.0,65433.0,0.00163766]
[1721209147577,1.83802916,65434.0,65433.0,0.00163766]
[1721209148115,1.83805253,65434.0,65433.0,0.00163766]
[1721209148317,1.83805371,65434.0,65433.0,0.00163766]
[1721209150810,1.99240328,65434.0,65433.0,0.00163766]
[1721209151354,1.95333619,65434.0,65433.0,0.00163766]
[1721209151535,1.99244308,65434.0,65433.0,0.00163766]
[1721209152665,1.83809351,65434.0,65433.0,0.00163766]
[1721209154664,1.79898662,65434.0,65433.0,0.00163766]
[1721209154869,1.83798118,65434.0,65433.0,0.00163766]
[1721209156365,1.77568118,65434.0,65433.0,0.00163766]
[1721209156530,1.69818118,65434.0,65433.0,0.00163766]
[1721209156727,1.69818118,65434.0,65433.0,0.16708301]
[1721209156728,0.62684644,65434.0,65433.0,0.16708301]
[1721209156930,0.62684644,65434.0,65433.0,0.02508301]
[1721209157133,0.93249744,65434.0,65433.0,0.02508301]
[1721209157435,0.93249744,65434.0,65433.0,0.00163766]
[1721209157436,1.39253018,65434.0,65433.0,0.00163766]
[1721209157831,1.35353562,65434.0,65433.0,0.00163766]
[1721209158032,1.39213291,65434.0,65433.0,0.00163766]
[1721209159071,1.39013291,65434.0,65433.0,0.00063766]
[1721209159918,1.39213291,65434.0,65433.0,0.00163766]
[1721209160307,1.39013291,65434.0,65433.0,0.00063766]
[1721209160690,1.39213291,65434.0,65433.0,0.00163766]
[1721209161290,1.392183,65434.0,65433.0,0.00163766]
[1721209161988,1.392183,65434.0,65433.0,0.02508301]
[1721209162638,1.46078006,65434.0,65433.0,0.02508301]
[1721209163459,1.392183,65434.0,65433.0,0.02508301]
[1721209164262,1.392183,65434.0,65433.0,0.09088301]
[1721209164464,1.48369057,65434.0,65433.0,0.09088301]
[1721209165460,0.32075187,65434.0,65433.0,0.16958301]
[1721209165908,0.28220088,65434.0,65433.0,0.16958301]
[1721209166399,0.28020088,65434.0,65433.0,0.16858301]
[1721209166835,0.12937588,65434.0,65433.0,0.16858301]
[1721209167036,0.02937588,65434.0,65433.0,0.16858301]
[1721209167284,0.00345929,65434.0,65433.0,0.62706701]
[1721209167465,0.4771,65442.0,65434.0,0.1425]
[1721209167671,0.4771,65442.0,65441.0,0.16104535]
[1721209167848,0.50101053,65442.0,65441.0,0.16104535]
[1721209168506,0.60101053,65442.0,65441.0,0.16104535]
[1721209168717,0.60101053,65442.0,65441.0,0.31385435]
[1721209168929,0.11539326,65452.0,65450.0,0.02344535]
[1721209168930,0.00084,65452.0,65450.0,0.02344535]
[1721209169135,0.02474675,65451.0,65450.0,0.16004535]
[1721209169337,0.00084,65451.0,65450.0,0.16004535]
[1721209169867,0.00084,65451.0,65450.0,0.31283335]
[1721209170313,0.00084,65451.0,65450.0,0.61840935]
[1721209170517,0.00084,65451.0,65450.0,1.22956135]
[1721209170856,0.04573274,65474.0,65469.0,0.02344535]
[1721209171048,0.35202774,65476.0,65474.0,0.02344535]
[1721209171348,0.61257174,65475.0,65474.0,0.02344535]
[1721209171983,0.71257174,65475.0,65474.0,0.02344535]
[1721209172610,0.306295,65476.0,65474.0,0.02344535]
[1721209172611,0.00084,65476.0,65474.0,0.02344535]
[1721209172815,0.00084,65476.0,65475.0,0.02344535]
[1721209173216,0.00438322,65476.0,65475.0,0.02344535]
[1721209173708,0.30983822,65476.0,65475.0,0.02344535]
[1721209173911,0.15273,65475.0,65474.0,0.02344535]
[1721209174114,0.45819,65475.0,65474.0,0.02344535]
[1721209174316,0.15628442,65475.0,65474.0,0.02344535]
[1721209174489,0.25628442,65475.0,65474.0,0.02344535]
[1721209176732,0.25628442,65475.0,65474.0,0.02444535]
[1721209178314,0.56174442,65475.0,65474.0,0.02444535]
[1721209178484,0.86720442,65475.0,65474.0,0.02444535]
[1721209179497,0.86720442,65475.0,65474.0,0.02344535]
[1721209179912,0.86920442,65475.0,65474.0,0.02344535]
[1721209182461,0.86720442,65475.0,65474.0,0.02344535]
[1721209182865,0.86920442,65475.0,65474.0,0.02344535]
[1721209183440,0.86720442,65475.0,65474.0,0.02344535]
[1721209183595,0.86920442,65475.0,65474.0,0.02344535]
[1721209184167,0.610948,65472.0,65471.0,0.02344535]
[1721209184371,0.76723312,65472.0,65471.0,0.16704535]
[1721209184574,0.00354812,65472.0,65471.0,0.16704535]
[1721209184822,0.154731,65475.0,65471.0,0.10074535]
[1721209184823,0.002,65475.0,65471.0,0.10074535]
[1721209185001,0.002,65475.0,65474.0,0.08974535]
[1721209185380,0.002,65475.0,65474.0,0.69890935]
[1721209185618,0.00084,65476.0,65475.0,0.24067535]
[1721209185764,0.00084,65476.0,65475.0,0.32207535]
[1721209186171,0.00084,65476.0,65475.0,0.62753535]
[1721209186402,0.00084,65476.0,65475.0,1.44283709]
[1721209186804,0.00084,65476.0,65475.0,1.45183709]
[1721209187254,0.00084,65476.0,65475.0,1.46583709]
[1721209187429,0.00837,65477.0,65476.0,0.83708235]
[1721209187659,0.00837,65477.0,65476.0,0.93408235]
[1721209187817,0.00837,65477.0,65476.0,0.94278582]
[1721209188219,0.00837,65477.0,65476.0,1.45262256]
[1721209188836,0.00837,65477.0,65476.0,1.40262256]
[1721209189429,0.00837,65477.0,65476.0,1.41662256]
[1721209189633,0.00837,65477.0,65476.0,1.43062256]
[1721209189832,0.00837,65477.0,65476.0,1.41662256]
[1721209190035,0.00837,65477.0,65476.0,2.13062256]
[1721209190254,0.00837,65477.0,65476.0,2.11662256]
[1721209190455,0.00837,65477.0,65476.0,2.13062256]
[1721209191276,0.00837,65477.0,65476.0,2.18062256]
[1721209191684,0.00837,65477.0,65476.0,1.47191909]
[1721209191886,0.00837,65477.0,65476.0,1.45791909]
[1721209192085,0.00837,65477.0,65476.0,1.44391909]
[1721209192293,0.00837,65477.0,65476.0,1.45791909]
[1721209192493,0.00837,65477.0,65476.0,1.47191909]
[1721209192730,0.00837,65477.0,65476.0,1.44391909]
[1721209192930,0.00837,65477.0,65476.0,1.47191909]
[1721209193544,0.00837,65489.0,65488.0,0.02344535]
[1721209193956,0.01195808,65489.0,65488.0,0.02344535]
[1721209194255,0.01195808,65489.0,65488.0,0.16734535]
[1721209195429,0.01195808,65489.0,65488.0,0.18934535]
[1721209195830,0.00837,65489.0,65488.0,0.18934535]
[1721209196636,0.01194794,65489.0,65488.0,0.18934535]
[1721209196832,0.01194794,65489.0,65488.0,0.19804869]
[1721209197077,0.01194794,65489.0,65488.0,0.5065014]
[1721209197274,0.01194794,65489.0,65488.0,1.46845593]
[1721209197432,0.00837,65489.0,65488.0,1.59526168]
[1721209198358,0.00837,65489.0,65488.0,1.83890363]
[1721209198556,0.00837,65489.0,65488.0,0.3051511]
[1721209199012,0.00837,65489.0,65488.0,0.18134535]
[1721209199205,0.00837,65489.0,65488.0,0.19534535]
[1721209199382,0.00837,65489.0,65488.0,0.18134535]
[1721209199881,0.00837,65489.0,65488.0,0.19534535]
[1721209200417,0.00837,65489.0,65488.0,0.322157]
[1721209200791,0.00837,65489.0,65488.0,0.229057]
[1721209200973,0.00837,65489.0,65488.0,0.10224535]
[1721209200974,0.01198137,65489.0,65488.0,0.10224535]
[1721209201173,0.00837,65489.0,65488.0,0.10224535]
[1721209201371,0.00837,65489.0,65488.0,0.03744535]
[1721209201372,0.01198137,65489.0,65488.0,0.03744535]
[1721209201793,0.00837,65489.0,65488.0,0.03744535]
[1721209201998,0.00837,65489.0,65488.0,0.11462014]
[1721209202199,0.00837,65489.0,65488.0,0.05044535]
[1721209202401,0.152681,65496.0,65488.0,0.05044535]
[1721209202402,0.152681,65496.0,65495.0,0.02344535]
[1721209202687,0.15631064,65496.0,65495.0,0.02344535]
[1721209203617,0.00362964,65496.0,65495.0,0.08964535]
[1721209203818,0.00836,65499.0,65498.0,0.02344535]
[1721209204196,0.4700197,65499.0,65498.0,0.02344535]
[1721209204517,0.7753677,65499.0,65498.0,0.02344535]
[1721209205012,0.7753677,65499.0,65495.0,0.01]
[1721209205013,0.1525977,65499.0,65495.0,0.01]
[1721209205124,1.068767,65496.0,65495.0,0.02344535]
[1721209205335,0.15438174,65496.0,65490.0,0.02344535]
[1721209205537,0.15438174,65496.0,65489.0,0.00870717]
[1721209205538,0.458085,65490.0,65489.0,0.03215252]